lending/lending_fUSD_20250819
["ID","MTS","AMOUNT","RATE_DAILY","PERIOD"]
[380293736,1755641441015,-229.62601157,0.000154,2]
[380293738,1755641441029,-798.74,0.00015413,2]
[380293740,1755641441042,-151.0,0.00015462,2]
[380293743,1755641441056,-151.0,0.00015462,2]
[380293745,1755641441070,-151.0,0.00015462,2]
[380293748,1755641441083,-151.0,0.00015462,2]
[380293750,1755641441097,-218.29214,0.00015462,2]
[380293752,1755641441111,-151.0,0.00015462,2]
[380293755,1755641441125,-151.0,0.00015462,2]
[380293757,1755641441139,-151.277736,0.00015462,2]
[380293760,1755641441152,-151.0,0.00015462,2]
[380293762,1755641441166,-151.0,0.00015462,2]
[380293764,1755641441179,-151.0,0.00015462,2]
[380293767,1755641441192,-151.0,0.00015462,2]
[380293769,1755641441205,-151.0,0.00015462,2]
[380293772,1755641441219,-151.0,0.00015462,2]
[380293774,1755641441232,-151.0,0.00015462,2]
[380293776,1755641441246,-151.0,0.00015462,2]
[380293779,1755641441259,-151.0,0.00015462,2]
[380293781,1755641441272,-151.0,0.00015462,2]
[380293784,1755641441285,-151.0,0.00015462,2]
[380293786,1755641441298,-151.0,0.00015462,2]
[380293788,1755641441311,-303.536632,0.00015462,2]
[380293791,1755641441325,-303.536632,0.00015462,2]
[380293793,1755641441339,-303.536632,0.00015462,2]
[380293795,1755641441352,-303.536632,0.00015462,2]
[380293798,1755641441365,-151.0,0.00015462,2]
[380293800,1755641441378,-151.0,0.00015462,2]
[380293803,1755641441392,-151.450263,0.00015462,2]
[380293805,1755641441405,-151.0,0.00015462,2]
[380293808,1755641441418,-151.0,0.00015462,2]
[380293810,1755641441431,-203.328012,0.00015462,2]
[380293812,1755641441445,-151.0,0.00015462,2]
[380293815,1755641441461,-203.328012,0.00015462,2]
[380293817,1755641441475,-151.0,0.00015462,2]
[380293820,1755641441489,-203.328012,0.00015462,2]
[380293822,1755641441503,-151.0,0.00015462,2]
[380293824,1755641441516,-210.647379,0.00015462,2]
[380293827,1755641441532,-151.0,0.00015462,2]
[380293829,1755641441545,-203.328012,0.00015462,2]
[380293832,1755641441558,-151.0,0.00015462,2]
[380293834,1755641441572,-210.647379,0.00015462,2]
[380293837,1755641441586,-210.647379,0.00015462,2]
[380293839,1755641441600,-210.647379,0.00015462,2]
[380293841,1755641441615,-151.0,0.00015462,2]
[380293844,1755641441629,-151.0,0.00015462,2]
[380293846,1755641441642,-151.0,0.00015462,2]
[380293849,1755641441654,-151.0,0.00015462,2]
[380293851,1755641441667,-151.0,0.00015462,2]
[380293853,1755641441679,-151.0,0.00015462,2]
[380293856,1755641441693,-151.0,0.00015462,2]
[380293858,1755641441706,-153.057246,0.00015462,2]
[380293861,1755641441719,-309.369611,0.00015462,2]
[380293863,1755641441732,-151.0,0.00015462,2]
[380293865,1755641441745,-309.369611,0.00015462,2]
[380293868,1755641441757,-169.114262,0.00015462,2]
[380293870,1755641441770,-309.369611,0.00015462,2]
[380293873,1755641441783,-151.0,0.00015462,2]
[380293875,1755641441796,-309.369611,0.00015462,2]
[380293877,1755641441809,-151.0,0.00015462,2]
[380293880,1755641441821,-151.0,0.00015462,2]
[380293882,1755641441839,-172.446223,0.00015462,2]
[380293885,1755641441852,-151.0,0.00015462,2]
[380293887,1755641441868,-151.0,0.00015462,2]
[380293890,1755641441881,-151.0,0.00015462,2]
[380293892,1755641441894,-151.0,0.00015462,2]
[380293894,1755641441908,-151.0,0.00015462,2]
[380293897,1755641441920,-151.0,0.00015462,2]
[380293899,1755641441934,-151.0,0.00015462,2]
[380293902,1755641441946,-151.0,0.00015462,2]
[380293904,1755641441959,-352.476712,0.00015462,2]
[380293906,1755641441973,-352.476712,0.00015462,2]
[380293909,1755641441986,-352.476712,0.00015462,2]
[380293911,1755641442000,-352.476712,0.00015462,2]
[380293913,1755641442013,-151.617254,0.00015462,2]
[380293916,1755641442026,-151.0,0.00015462,2]
[380293918,1755641442039,-1487.597972,0.00015462,2]
[380293920,1755641442054,-151.0,0.00015462,2]
[380293923,1755641442070,-1487.597972,0.00015462,2]
[380293925,1755641442084,-151.0,0.00015462,2]
[380293927,1755641442098,-1487.597972,0.00015462,2]
[380293930,1755641442113,-1487.597972,0.00015462,2]
[380293932,1755641442126,-151.0,0.00015462,2]
[380293934,1755641442139,-151.0,0.00015462,2]
[380293936,1755641442152,-321.43622,0.00015462,2]
[380293938,1755641442164,-151.0,0.00015462,2]
[380293940,1755641442179,-151.0,0.00015462,2]
[380293942,1755641442191,-321.43622,0.00015462,2]
[380293945,1755641442204,-151.0,0.00015462,2]
[380293947,1755641442216,-151.0,0.00015462,2]
[380293949,1755641442229,-151.0,0.00015462,2]
[380293951,1755641442242,-321.43622,0.00015462,2]
[380293952,1755641442252,-151.0,0.00015462,2]
[380293953,1755641442261,-151.0,0.00015462,2]
[380293954,1755641442270,-321.43622,0.00015462,2]
[380293955,1755641442279,-320.209209,0.00015462,2]
[380293957,1755641442289,-243.344433,0.00015462,2]
[380293959,1755641442299,-320.209209,0.00015462,2]
[380293960,1755641442308,-243.344433,0.00015462,2]
[380293961,1755641442317,-320.209209,0.00015462,2]
[380293962,1755641442327,-243.344433,0.00015462,2]
[380293963,1755641442337,-320.209209,0.00015462,2]
[380293967,1755641443010,-243.344433,0.00015462,2]
[380293968,1755641443045,-151.0,0.00015462,2]
[380293969,1755641443063,-151.0,0.00015462,2]
[380293970,1755641443098,-151.0,0.00015462,2]
[380293971,1755641443133,-241.367257,0.00015462,2]
[380293972,1755641443150,-151.0,0.00015462,2]
[380293973,1755641443159,-151.903474,0.00015462,2]
[380293974,1755641443169,-160.289918,0.00015462,2]
[380293975,1755641443178,-151.0,0.00015462,2]
[380293976,1755641443187,-151.0,0.00015462,2]
[380293977,1755641443197,-151.0,0.00015462,2]
[380293978,1755641443206,-96287.46867392,0.000155,2]
[380293979,1755641443216,-151.0,0.000155,2]
[380293980,1755641443226,-151.0,0.000155,2]
[380293981,1755641443235,-151.0,0.000155,2]
[380293982,1755641443244,-151.0,0.000155,2]
[380293983,1755641443254,-151.0,0.000155,2]
[380293984,1755641443263,-151.0,0.000155,2]
[380293985,1755641443272,-151.0,0.000155,2]
[380293986,1755641443281,-151.0,0.000155,2]
[380293987,1755641443290,-151.0,0.000155,2]
[380293988,1755641443299,-221.436637,0.000155,2]
[380293989,1755641443308,-151.0,0.000155,2]
[380293990,1755641443318,-468.325856,0.000155,2]
[380293991,1755641443327,-468.325856,0.000155,2]
[380293992,1755641443336,-468.325856,0.000155,2]
[380293993,1755641443345,-468.325856,0.000155,2]
[380293994,1755641443354,-151.0,0.000155,2]
[380293995,1755641443365,-151.0,0.000155,2]
[380293996,1755641443374,-151.0,0.000155,2]
[380293997,1755641443383,-151.0,0.000155,2]
[380293998,1755641443392,-151.0,0.000155,2]
[380293999,1755641443401,-151.0,0.000155,2]
[380294000,1755641443410,-151.0,0.000155,2]
[380294001,1755641443419,-151.0,0.000155,2]
[380294002,1755641443428,-818.699908,0.000155,2]
[380294003,1755641443437,-551.065868,0.000155,2]
[380294004,1755641443447,-818.699908,0.000155,2]
[380294005,1755641443461,-551.065868,0.000155,2]
[380294006,1755641443471,-818.699908,0.000155,2]
[380294007,1755641443481,-551.065868,0.000155,2]
[380294008,1755641443491,-151.0,0.000155,2]
[380294009,1755641443501,-818.699908,0.000155,2]
[380294010,1755641443510,-551.065868,0.000155,2]
[380294011,1755641443520,-151.0,0.000155,2]
[380294012,1755641443533,-411.984253,0.000155,2]
[380294014,1755641443543,-411.984253,0.000155,2]
[380294016,1755641443552,-411.984253,0.000155,2]
[380294018,1755641443562,-151.0,0.000155,2]
[380294020,1755641443571,-411.984253,0.000155,2]
[380294021,1755641443580,-151.0,0.000155,2]
[380294022,1755641443590,-151.0,0.000155,2]
[380294023,1755641443600,-151.0,0.000155,2]
[380294024,1755641443610,-151.0,0.000155,2]
[380294025,1755641443620,-151.0,0.000155,2]
[380294026,1755641443630,-253.941086,0.000155,2]
[380294027,1755641443639,-151.0,0.000155,2]
[380294028,1755641443648,-151.0,0.000155,2]
[380294029,1755641443657,-151.0,0.000155,2]
[380294030,1755641443666,-151.0,0.000155,2]
[380294031,1755641443676,-276.27317914,0.000155,2]
[380294032,1755641443685,-151.0,0.000155,2]
[380294033,1755641443694,-151.0,0.000155,2]
[380294034,1755641443704,-151.0,0.000155,2]
[380294035,1755641443713,-151.0,0.000155,2]
[380294036,1755641443722,-151.0,0.000155,2]
[380294037,1755641443732,-151.0,0.000155,2]
[380294038,1755641443741,-151.0,0.000155,2]
[380294039,1755641443750,-151.0,0.000155,2]
[380294040,1755641443759,-230.750282,0.000155,2]
[380294041,1755641443769,-151.0,0.000155,2]
[380294042,1755641443778,-230.750282,0.000155,2]
[380294043,1755641443787,-230.750282,0.000155,2]
[380294044,1755641443796,-324.463709,0.000155,2]
[380294045,1755641443805,-230.750282,0.000155,2]
[380294046,1755641443814,-324.463709,0.000155,2]
[380294047,1755641443823,-250.296089,0.000155,2]
[380294048,1755641443832,-324.463709,0.000155,2]
[380294049,1755641443841,-151.0,0.000155,2]
[380294050,1755641443850,-250.296089,0.000155,2]
[380294051,1755641443861,-324.463709,0.000155,2]
[380294052,1755641443871,-151.0,0.000155,2]
[380294053,1755641443880,-250.296089,0.000155,2]
[380294054,1755641443890,-250.296089,0.000155,2]
[380294055,1755641443900,-151.0,0.000155,2]
[380294056,1755641443911,-151.0,0.000155,2]
[380294057,1755641443921,-151.0,0.000155,2]
[380294058,1755641443932,-151.0,0.000155,2]
[380294059,1755641443941,-151.0,0.000155,2]
[380294060,1755641443950,-151.0,0.000155,2]
[380294061,1755641443959,-151.0,0.000155,2]
[380294062,1755641443968,-151.0,0.000155,2]
[380294063,1755641443978,-151.0,0.000155,2]
[380294064,1755641443987,-193.223135,0.000155,2]
[380294065,1755641443996,-151.0,0.000155,2]
[380294066,1755641444008,-201.777989,0.000155,2]
[380294067,1755641444018,-636.335056,0.000155,2]
[380294068,1755641444028,-201.777989,0.000155,2]
[380294069,1755641444037,-636.335056,0.000155,2]
[380294070,1755641444047,-151.0,0.000155,2]
[380294071,1755641444058,-201.777989,0.000155,2]
[380294072,1755641444067,-193.223135,0.000155,2]
[380294073,1755641444077,-636.335056,0.000155,2]
[380294074,1755641444086,-151.0,0.000155,2]
[380294075,1755641444096,-151.0,0.000155,2]
[380294076,1755641444104,-201.777989,0.000155,2]
[380294077,1755641444115,-193.223135,0.000155,2]
[380294078,1755641444125,-636.335056,0.000155,2]
[380294079,1755641444134,-151.0,0.000155,2]
[380294080,1755641444143,-151.0,0.000155,2]
[380294081,1755641444152,-151.0,0.000155,2]
[380294082,1755641444160,-151.0,0.000155,2]
[380294083,1755641444170,-151.0,0.000155,2]
[380294084,1755641444179,-151.0,0.000155,2]
[380294085,1755641444187,-193.223135,0.000155,2]
[380294086,1755641444196,-151.0,0.000155,2]
[380294087,1755641444205,-1457.668293,0.000155,2]
[380294088,1755641444215,-267.226846,0.000155,2]
[380294089,1755641444227,-151.0,0.000155,2]
[380294090,1755641444238,-151.0,0.000155,2]
[380294091,1755641444248,-267.226846,0.000155,2]
[380294092,1755641444258,-1457.668293,0.000155,2]
[380294093,1755641444267,-151.0,0.000155,2]
[380294094,1755641444276,-151.0,0.000155,2]
[380294095,1755641444285,-1457.668293,0.000155,2]
[380294096,1755641444294,-506.799535,0.000155,2]
[380294097,1755641444304,-267.226846,0.000155,2]
[380294098,1755641444313,-151.0,0.000155,2]
[380294099,1755641444323,-243.72,0.000155,2]
[380294100,1755641444332,-1457.668293,0.000155,2]
[380294101,1755641444341,-506.799535,0.000155,2]
[380294102,1755641444351,-267.226846,0.000155,2]
[380294103,1755641444361,-151.0,0.000155,2]
[380294104,1755641444370,-506.799535,0.000155,2]
[380294105,1755641444379,-151.0,0.000155,2]
[380294106,1755641444388,-506.799535,0.000155,2]
[380294107,1755641444398,-151.0,0.000155,2]
[380294108,1755641444407,-151.0,0.000155,2]
[380294109,1755641444416,-151.0,0.000155,2]
[380294110,1755641444425,-151.0,0.000155,2]
[380294111,1755641444435,-285.05531,0.000155,2]
[380294112,1755641444444,-152.696653,0.000155,2]
[380294113,1755641444456,-159.806152,0.000155,2]
[380294114,1755641444465,-502.149321,0.000155,2]
[380294115,1755641444474,-502.149321,0.000155,2]
[380294116,1755641444483,-151.0,0.000155,2]
[380294117,1755641444493,-502.149321,0.000155,2]
[380294118,1755641444502,-151.0,0.000155,2]
[380294119,1755641444512,-502.149321,0.000155,2]
[380294120,1755641444521,-435.296319,0.000155,2]
[380294121,1755641444530,-151.0,0.000155,2]
[380294122,1755641444539,-151.0,0.000155,2]
[380294123,1755641444548,-151.0,0.000155,2]
[380294124,1755641444558,-435.296319,0.000155,2]
[380294125,1755641444567,-151.0,0.000155,2]
[380294126,1755641444582,-151.0,0.000155,2]
[380294127,1755641444600,-435.296319,0.000155,2]
[380294128,1755641444609,-152.189302,0.000155,2]
[380294129,1755641444618,-7134.23069,0.000155,2]
[380294130,1755641444627,-435.296319,0.000155,2]
[380294131,1755641444636,-7134.23069,0.000155,2]
[380294132,1755641444645,-290.346423,0.000155,2]
[380294133,1755641444655,-377.91897,0.000155,2]
[380294134,1755641444664,-151.0,0.000155,2]
[380294135,1755641444673,-7134.23069,0.000155,2]
[380294136,1755641444682,-290.346423,0.000155,2]
[380294137,1755641444691,-151.0,0.000155,2]
[380294138,1755641444700,-151.0,0.000155,2]
[380294139,1755641444713,-7134.23069,0.000155,2]
[380294140,1755641444722,-151.0,0.000155,2]
[380294141,1755641444731,-290.346423,0.000155,2]
[380294142,1755641444740,-377.91897,0.000155,2]
[380294143,1755641444749,-151.0,0.000155,2]
[380294144,1755641444758,-151.0,0.000155,2]
[380294145,1755641444767,-377.91897,0.000155,2]
[380294146,1755641444776,-290.346423,0.000155,2]
[380294147,1755641444785,-151.0,0.000155,2]
[380294148,1755641444795,-377.91897,0.000155,2]
[380294149,1755641444805,-151.0,0.000155,2]
[380294150,1755641444814,-151.0,0.000155,2]
[380294151,1755641444823,-151.0,0.000155,2]
[380294152,1755641444832,-151.0,0.000155,2]
[380294153,1755641444841,-151.0,0.000155,2]
[380294154,1755641444850,-925.596752,0.000155,2]
[380294155,1755641444860,-151.0,0.000155,2]
[380294156,1755641444869,-925.596752,0.000155,2]
[380294157,1755641444878,-151.0,0.000155,2]
[380294158,1755641444888,-925.596752,0.000155,2]
[380294159,1755641444897,-288.015867,0.000155,2]
[380294160,1755641444906,-925.596752,0.000155,2]
[380294161,1755641444915,-151.0,0.000155,2]
[380294162,1755641444924,-151.0,0.000155,2]
[380294163,1755641444933,-151.0,0.000155,2]
[380294164,1755641444943,-151.0,0.000155,2]
[380294165,1755641444952,-419.804674,0.000155,2]
[380294166,1755641444961,-419.804674,0.000155,2]
[380294167,1755641444972,-419.804674,0.000155,2]
[380294168,1755641444982,-419.804674,0.000155,2]
[380294169,1755641444992,-151.0,0.000155,2]
[380294170,1755641445007,-151.0,0.000155,2]
[380294171,1755641445022,-151.0,0.000155,2]
[380294172,1755641445031,-151.0,0.000155,2]
[380294173,1755641445040,-617.46186,0.000155,2]
[380294174,1755641445049,-151.0,0.000155,2]
[380294175,1755641445058,-617.46186,0.000155,2]
[380294176,1755641445068,-325.171712,0.000155,2]
[380294177,1755641445077,-151.0,0.000155,2]
[380294178,1755641445086,-951.594588,0.000155,2]
[380294179,1755641445095,-617.46186,0.000155,2]
[380294180,1755641445104,-325.171712,0.000155,2]
[380294181,1755641445115,-236.208573,0.000155,2]
[380294182,1755641445124,-617.46186,0.000155,2]
[380294183,1755641445133,-325.171712,0.000155,2]
[380294184,1755641445143,-951.594588,0.000155,2]
[380294185,1755641445152,-325.171712,0.000155,2]
[380294186,1755641445161,-4902.242574,0.000155,2]
[380294187,1755641445171,-951.594588,0.000155,2]
[380294188,1755641445179,-951.594588,0.000155,2]
[380294189,1755641445187,-4902.242574,0.000155,2]
[380294190,1755641445196,-151.0,0.000155,2]
[380294191,1755641445206,-4902.242574,0.000155,2]
[380294192,1755641445215,-151.0,0.000155,2]
[380294193,1755641445224,-175.315103,0.000155,2]
[380294194,1755641445233,-4902.242574,0.000155,2]
[380294195,1755641445242,-175.315103,0.000155,2]
[380294196,1755641445252,-151.0,0.000155,2]
[380294197,1755641445262,-469.653865,0.000155,2]
[380294198,1755641445271,-919.606085,0.000155,2]
[380294199,1755641445280,-175.315103,0.000155,2]
[380294200,1755641445288,-469.653865,0.000155,2]
[380294201,1755641445298,-919.606085,0.000155,2]
[380294202,1755641445307,-175.315103,0.000155,2]
[380294203,1755641445316,-919.606085,0.000155,2]
[380294204,1755641445325,-469.653865,0.000155,2]
[380294205,1755641445335,-260.877865,0.000155,2]
[380294206,1755641445344,-919.606085,0.000155,2]
[380294207,1755641445353,-469.653865,0.000155,2]
[380294208,1755641445363,-260.877865,0.000155,2]
[380294209,1755641445372,-260.877865,0.000155,2]
[380294210,1755641445381,-260.877865,0.000155,2]
[380294211,1755641445390,-1425.0,0.00015526,2]
[380294212,1755641445400,-55872.84801968,0.00015566,2]
[380294213,1755641445408,-136124.77446792,0.00015566,2]
[380294214,1755641445417,-246.886668,0.000156,3]
[380294215,1755641445426,-165.452118,0.000156,3]
[380294216,1755641445436,-196.052696,0.000156,3]
[380294217,1755641445446,-1425.0,0.00015643,2]
[380294218,1755641445457,-293047.07,0.000157,2]
[380294219,1755641445467,-1425.0,0.00015733,2]
[380294220,1755641445476,-151.0,0.00015733,2]
[380294221,1755641445485,-151.0,0.00015733,2]
[380294222,1755641445495,-151.0,0.00015733,2]
[380294223,1755641445506,-249.40441,0.00015733,2]
[380294224,1755641445515,-249.40441,0.00015733,2]
[380294225,1755641445525,-151.0,0.00015733,2]
[380294226,1755641445535,-249.40441,0.00015733,2]
[380294227,1755641445545,-249.40441,0.00015733,2]
[380294228,1755641445555,-5526.4,0.00015753,2]
[380294229,1755641445565,-1252.0,0.00015777,2]
[380294230,1755641445574,-990.83,0.0001579,2]
[380294231,1755641445584,-500.0,0.00015819,2]
[380294232,1755641445593,-168.75726635,0.00015822,11]
[380294233,1755641445603,-500.0,0.00015867,2]
[380294234,1755641445613,-1000.0,0.00015867,2]
[380294235,1755641445623,-3283.27,0.0001589,2]
[380294236,1755641445632,-852.0,0.00015899,2]
[380294237,1755641445641,-15829.76,0.000159,2]
[380294238,1755641445651,-953.0,0.00015957,3]
[380294239,1755641445660,-514.24406709,0.00016,2]
[380294240,1755641445669,-458.43483364,0.00016,3]
[380294241,1755641445679,-385.046395,0.00016,2]
[380294242,1755641445689,-212.02104404,0.00016,3]
[380294243,1755641445699,-555.81335514,0.00016041,2]
[380294244,1755641445709,-500.0,0.00016041,2]
[380294245,1755641445719,-500.0,0.00016041,2]
[380294246,1755641445728,-326.25953169,0.00016041,2]
[380294247,1755641445738,-500.0,0.00016041,2]
[380294248,1755641445747,-500.0,0.00016041,2]
[380294250,1755641445757,-500.0,0.00016041,2]
[380294251,1755641445767,-500.0,0.00016041,2]
[380294252,1755641445776,-500.0,0.00016041,2]
[380294253,1755641445786,-160.0183781,0.00016041,2]
[380294254,1755641445795,-500.0,0.00016041,2]
[380294255,1755641445804,-500.0,0.00016041,2]
[380294256,1755641445814,-500.0,0.00016041,2]
[380294257,1755641445824,-500.0,0.00016041,2]
[380294258,1755641445834,-500.0,0.00016041,2]
[380294259,1755641445843,-500.00892829,0.00016041,2]
[380294260,1755641445853,-500.0,0.00016041,2]
[380294261,1755641445864,-500.0,0.00016041,2]
[380294262,1755641445874,-500.0,0.00016041,2]
[380294263,1755641445884,-500.0,0.00016041,2]
[380294264,1755641445894,-500.0,0.00016041,2]
[380294265,1755641445904,-163.79936004,0.00016041,2]
[380294266,1755641445913,-500.0,0.00016041,2]
[380294267,1755641445923,-500.0,0.00016041,2]
[380294268,1755641445933,-500.0,0.00016041,2]
[380294269,1755641445943,-527.81920081,0.00016041,2]
[380294270,1755641445952,-500.0,0.00016041,2]
[380294271,1755641445962,-500.0,0.00016041,2]
[380294272,1755641445971,-500.0,0.00016041,2]
[380294273,1755641445981,-500.0,0.00016041,2]
[380294274,1755641445991,-500.0,0.00016075,2]
[380294275,1755641446000,-159.97807903,0.00016075,2]
[380294276,1755641446010,-500.0,0.00016075,2]
[380294277,1755641446019,-500.0,0.00016075,2]
[380294278,1755641446029,-534.43457318,0.00016075,2]
[380294279,1755641446038,-500.0,0.00016075,2]
[380294280,1755641446048,-500.0,0.00016075,2]
[380294281,1755641446057,-160.01423409,0.00016075,2]
[380294282,1755641446067,-500.0,0.00016075,2]
[380294283,1755641446076,-160.09526249,0.00016075,2]
[380294284,1755641446086,-500.0,0.00016075,2]
[380294285,1755641446095,-9999.99,0.00016116,2]
[380294286,1755641446104,-521.72062041,0.0001614,2]
[380294287,1755641446115,-505.80945595,0.0001614,2]
[380294288,1755641446125,-160.0,0.00016179,2]
[380294289,1755641446135,-287.61899177,0.00016179,2]
[380294290,1755641446144,-311.1,0.00016179,2]
[380294291,1755641446155,-272.66107451,0.00016244,2]
[380294292,1755641446164,-1425.0,0.00016274,2]
[380294293,1755641446174,-200.0,0.0001634,2]
[380294294,1755641446183,-55872.84801968,0.00016344,2]
[380294295,1755641446192,-136124.77446792,0.00016344,2]
[380294296,1755641446202,-1000.0,0.00016367,2]
[380294297,1755641446212,-300.0,0.00016438,4]
[380294298,1755641446222,-500.0,0.00016438,2]
[380294299,1755641446231,-3387.2,0.00016438,2]
[380294300,1755641446242,-416.0,0.00016438,2]
[380294301,1755641446251,-151.0,0.00016438,2]
[380294302,1755641446261,-151.0,0.00016438,2]
[380294303,1755641446271,-151.0,0.00016438,2]
[380294304,1755641446281,-151.0,0.00016438,2]
[380294305,1755641446290,-300.0,0.00016438,2]
[380294306,1755641446300,-5526.4,0.00016438,2]
[380294307,1755641446309,-1318.54,0.00016438,2]
[380294308,1755641446319,-221.43,0.00016438,2]
[380294309,1755641446328,-2009.02559306,0.00016438,2]
[380294311,1755641446337,-600.0,0.00016438,2]
[380294313,1755641446347,-600.0,0.00016438,2]
[380294315,1755641446356,-600.0,0.00016438,2]
[380294319,1755641446366,-600.0,0.00016438,2]
[380294320,1755641446632,-600.0,0.00016438,2]
[380294321,1755641446642,-600.0,0.00016438,2]
[380294322,1755641446652,-600.0,0.00016438,2]
[380294323,1755641446661,-600.0,0.00016438,2]
[380294324,1755641446670,-600.0,0.00016438,2]
[380294325,1755641446680,-600.0,0.00016438,2]
[380294326,1755641446689,-600.0,0.00016438,2]
[380294327,1755641446699,-1425.0,0.00016462,2]
[380294328,1755641446708,-150.0,0.0001648,2]
[380294329,1755641446717,-168.75726635,0.00016513,13]
[380294330,1755641446728,-899.41411271,0.00016589,2]
[380294331,1755641446738,-546.6189456,0.00016589,2]
[380294332,1755641446747,-1000.0,0.00016589,2]
[380294333,1755641446757,-526.04103546,0.00016589,2]
[380294334,1755641446766,-1000.0,0.00016589,2]
[380294335,1755641446775,-1000.0,0.00016589,2]
[380294336,1755641446785,-1000.0,0.00016589,2]
[380294337,1755641446794,-1000.0,0.00016589,2]
[380294338,1755641446803,-1000.0,0.00016589,2]
[380294339,1755641446813,-770.7008467,0.00016589,2]
[380294340,1755641446823,-1000.0,0.00016589,2]
[380294341,1755641446832,-1000.0,0.00016589,2]
[380294342,1755641446841,-308.14362744,0.00016589,2]
[380294343,1755641446851,-1000.0,0.00016589,2]
[380294344,1755641446860,-1000.0,0.00016589,2]
[380294345,1755641446870,-531.80719477,0.00016589,2]
[380294346,1755641446880,-1000.0,0.00016589,2]
[380294347,1755641446890,-1000.0,0.00016589,2]
[380294348,1755641446899,-1000.0,0.00016589,2]
[380294349,1755641446908,-1000.0,0.00016589,2]
[380294350,1755641446918,-1000.0,0.00016589,2]
[380294351,1755641446927,-247.12303201,0.00016589,2]
[380294352,1755641446937,-1000.0,0.00016589,2]
[380294353,1755641446947,-1000.0,0.00016589,2]
[380294354,1755641446956,-352.75453895,0.000166,2]
[380294355,1755641446966,-252.75694248,0.00016623,2]
[380294356,1755641446976,-1000.0,0.00016623,2]
[380294357,1755641446985,-1000.0,0.00016623,2]
[380294358,1755641446994,-1000.0,0.00016623,2]
[380294359,1755641447004,-1000.0,0.00016623,2]
[380294360,1755641447013,-160.02529342,0.00016623,2]
[380294361,1755641447022,-1000.0,0.00016623,2]
[380294362,1755641447032,-1425.0,0.00016624,2]
[380294363,1755641447042,-246.886668,0.0001665,3]
[380294364,1755641447051,-165.452118,0.0001665,3]
[380294365,1755641447061,-196.052696,0.0001665,3]
[380294366,1755641447070,-1425.0,0.00016699,2]
[380294367,1755641447079,-500.0,0.00016712,2]
[380294368,1755641447088,-416.0,0.00016712,2]
[380294369,1755641447097,-3387.2,0.00016712,2]
[380294370,1755641447107,-226.64,0.00016712,2]
[380294371,1755641447117,-965.0,0.0001675,2]
[380294372,1755641447127,-965.0,0.00016773,2]
[380294373,1755641447136,-1065.57757012,0.000168,2]
[380294374,1755641447145,-1065.57757012,0.000168,2]
[380294375,1755641447154,-1065.57757012,0.000168,2]